[Event "*** Titled Tuesday Blitz"]
[Site "Chess.com"]
[Date "2020.12.01"]
[Round "3"]
[White "beto-betun"]
[Black "AsaHoffmann"]
[Result "0-1"]
[WhiteElo "2203"]
[BlackElo "2383"]
[TimeControl "180+1"]
[EndTime "10:29:11 PST"]
[Termination "AsaHoffmann won on time"]

1. d4 {[%clk 0:03:00.9]} 1... Nf6 {[%clk 0:02:58.7]} 2. Nf3 {[%clk 0:02:58.9]}
2... d6 {[%clk 0:02:58]} 3. g3 {[%clk 0:02:56.5]} 3... c6 {[%clk 0:02:57.4]} 4.
Bg2 {[%clk 0:02:56.5]} 4... Bf5 {[%clk 0:02:56.9]} 5. c4 {[%clk 0:02:55.6]} 5...
h6 {[%clk 0:02:56.1]} 6. O-O {[%clk 0:02:54.8]} 6... Nbd7 {[%clk 0:02:55.8]} 7.
b3 {[%clk 0:02:51.7]} 7... e5 {[%clk 0:02:54.2]} 8. Bb2 {[%clk 0:02:42.3]} 8...
e4 {[%clk 0:02:44.9]} 9. Nh4 {[%clk 0:02:42.8]} 9... Bh7 {[%clk 0:02:44]} 10. f4
{[%clk 0:02:17.2]} 10... d5 {[%clk 0:02:38.8]} 11. e3 {[%clk 0:01:52.5]} 11...
Be7 {[%clk 0:02:38]} 12. Bh3 {[%clk 0:01:45.2]} 12... O-O {[%clk 0:02:31.2]} 13.
Nd2 {[%clk 0:01:40.7]} 13... a6 {[%clk 0:02:29.7]} 14. Nf5 {[%clk 0:01:33.8]}
14... Re8 {[%clk 0:02:20]} 15. Nxe7+ {[%clk 0:01:33.6]} 15... Qxe7 {[%clk
0:02:19.1]} 16. g4 {[%clk 0:01:32.6]} 16... Kh8 {[%clk 0:02:07.8]} 17. Kh1
{[%clk 0:01:32.5]} 17... b5 {[%clk 0:02:06.7]} 18. c5 {[%clk 0:01:26.9]} 18...
a5 {[%clk 0:02:06.4]} 19. Rg1 {[%clk 0:01:24.9]} 19... Ng8 {[%clk 0:02:03.6]}
20. Qe1 {[%clk 0:01:23.4]} 20... Nf8 {[%clk 0:02:00.9]} 21. Qg3 {[%clk
0:01:23.2]} 21... a4 {[%clk 0:01:48]} 22. b4 {[%clk 0:01:21.6]} 22... a3 {[%clk
0:01:47.7]} 23. Bc3 {[%clk 0:01:20.8]} 23... Ra7 {[%clk 0:01:43.8]} 24. Rg2
{[%clk 0:01:20.7]} 24... f5 {[%clk 0:01:39.6]} 25. Rag1 {[%clk 0:01:17.7]} 25...
Qe6 {[%clk 0:01:33.7]} 26. g5 {[%clk 0:01:13.9]} 26... Ree7 {[%clk 0:01:29.9]}
27. Qh4 {[%clk 0:00:59]} 27... Qf7 {[%clk 0:01:08.2]} 28. Nb3 {[%clk 0:00:55.4]}
28... Re6 {[%clk 0:01:06.3]} 29. Qf2 {[%clk 0:00:41.7]} 29... Ng6 {[%clk
0:00:59.8]} 30. Rf1 {[%clk 0:00:32.4]} 30... Rc7 {[%clk 0:00:57.9]} 31. Rgg1
{[%clk 0:00:29.4]} 31... N8e7 {[%clk 0:00:56.8]} 32. Rg2 {[%clk 0:00:28.3]}
32... Kg8 {[%clk 0:00:49.9]} 33. Na5 {[%clk 0:00:28.6]} 33... Kf8 {[%clk
0:00:49]} 34. Rfg1 {[%clk 0:00:29]} 34... Ke8 {[%clk 0:00:47.6]} 35. Qe1 {[%clk
0:00:24.1]} 35... Kd7 {[%clk 0:00:44.9]} 36. Qc1 {[%clk 0:00:23.3]} 36... Ra7
{[%clk 0:00:43.7]} 37. Rg3 {[%clk 0:00:23.6]} 37... hxg5 {[%clk 0:00:40.7]} 38.
Rxg5 {[%clk 0:00:22.9]} 38... Ng8 {[%clk 0:00:36.5]} 39. Bf1 {[%clk 0:00:21.8]}
39... Nf6 {[%clk 0:00:35.7]} 40. Be2 {[%clk 0:00:21.7]} 40... Ng4 {[%clk
0:00:34.6]} 41. Bxg4 {[%clk 0:00:21.2]} 41... fxg4 {[%clk 0:00:33.9]} 42. Qxa3
{[%clk 0:00:20.6]} 42... Ne7 {[%clk 0:00:30.9]} 43. Qc1 {[%clk 0:00:19.6]} 43...
Bf5 {[%clk 0:00:30]} 44. Qd1 {[%clk 0:00:18.6]} 44... g6 {[%clk 0:00:29.4]} 45.
Rg3 {[%clk 0:00:17.6]} 45... Ra8 {[%clk 0:00:28.7]} 46. Kg1 {[%clk 0:00:17.9]}
46... Rh8 {[%clk 0:00:27.8]} 47. Kg2 {[%clk 0:00:17.5]} 47... Qh7 {[%clk
0:00:27.5]} 48. Qg1 {[%clk 0:00:17.1]} 48... Qh4 {[%clk 0:00:25.4]} 49. Nb3
{[%clk 0:00:16.8]} 49... Ng8 {[%clk 0:00:25.3]} 50. a4 {[%clk 0:00:16.9]} 50...
bxa4 {[%clk 0:00:24.5]} 51. Na5 {[%clk 0:00:16.1]} 51... Nf6 {[%clk 0:00:23.7]}
52. b5 {[%clk 0:00:17]} 52... cxb5 {[%clk 0:00:20]} 53. c6+ {[%clk 0:00:17.1]}
53... Ke7 {[%clk 0:00:20]} 54. Bb4+ {[%clk 0:00:17.5]} 54... Kf7 {[%clk
0:00:20]} 55. c7 {[%clk 0:00:18]} 55... Nh5 {[%clk 0:00:19.6]} 56. Bc5 {[%clk
0:00:13.3]} 56... Nxf4+ {[%clk 0:00:17.7]} 57. exf4 {[%clk 0:00:12.6]} 57... e3
{[%clk 0:00:17.6]} 58. Rxf5+ {[%clk 0:00:09.2]} 58... gxf5 {[%clk 0:00:17.1]}
59. Rxe3 {[%clk 0:00:08.3]} 59... Rxe3 {[%clk 0:00:15.8]} 60. Nc6 {[%clk
0:00:06.3]} 60... Qh3+ {[%clk 0:00:14.8]} 61. Kh1 {[%clk 0:00:05.7]} 61... Re2
{[%clk 0:00:13.6]} 62. Ne5+ {[%clk 0:00:06.6]} 62... Kf6 {[%clk 0:00:12.1]} 63.
Nf3 {[%clk 0:00:02.9]} 63... Qxf3+ {[%clk 0:00:10.3]} 0-1

[Event "*** Titled Tuesday Blitz"]
[Site "Chess.com"]
[Date "2020.12.01"]
[Round "3"]
[White "UCantHandleDenker"]
[Black "Massakru"]
[Result "1-0"]
[WhiteElo "2520"]
[BlackElo "2290"]
[TimeControl "180+1"]
[EndTime "10:29:14 PST"]
[Termination "UCantHandleDenker won on time"]

1. Nf3 {[%clk 0:03:00.9]} 1... d5 {[%clk 0:02:58.9]} 2. c4 {[%clk 0:03:00.1]}
2... c6 {[%clk 0:02:59.3]} 3. g3 {[%clk 0:02:59.7]} 3... Nd7 {[%clk 0:02:54.8]}
4. Bg2 {[%clk 0:02:59.6]} 4... e5 {[%clk 0:02:54.8]} 5. O-O {[%clk 0:02:52.3]}
5... e4 {[%clk 0:02:54.2]} 6. Nd4 {[%clk 0:02:51.1]} 6... Ngf6 {[%clk
0:02:48.6]} 7. cxd5 {[%clk 0:02:49.5]} 7... cxd5 {[%clk 0:02:48.5]} 8. d3 {[%clk
0:02:49.6]} 8... Be7 {[%clk 0:02:45.3]} 9. Nc3 {[%clk 0:02:49.5]} 9... O-O
{[%clk 0:02:44.6]} 10. dxe4 {[%clk 0:02:47.4]} 10... dxe4 {[%clk 0:02:44.2]} 11.
Nxe4 {[%clk 0:02:47.9]} 11... Nxe4 {[%clk 0:02:44.2]} 12. Bxe4 {[%clk
0:02:48.5]} 12... Bf6 {[%clk 0:02:44.4]} 13. Bg2 {[%clk 0:02:35.3]} 13... Qb6
{[%clk 0:02:37.8]} 14. Nb3 {[%clk 0:02:23.6]} 14... Ne5 {[%clk 0:02:31.5]} 15.
Be3 {[%clk 0:02:22.6]} 15... Qa6 {[%clk 0:02:22]} 16. Nc5 {[%clk 0:02:08.8]}
16... Qb5 {[%clk 0:02:21.2]} 17. Ne4 {[%clk 0:02:07.3]} 17... Be7 {[%clk
0:02:16.5]} 18. a4 {[%clk 0:01:44.2]} 18... Qe8 {[%clk 0:01:43.2]} 19. Bd4
{[%clk 0:01:36.3]} 19... Nc6 {[%clk 0:01:38.8]} 20. Bc3 {[%clk 0:01:36.2]} 20...
Be6 {[%clk 0:01:21]} 21. Nd6 {[%clk 0:01:26.4]} 21... Qb8 {[%clk 0:01:18.5]} 22.
Nb5 {[%clk 0:01:24.4]} 22... Rd8 {[%clk 0:01:12.5]} 23. Qc2 {[%clk 0:01:21.6]}
23... a6 {[%clk 0:01:10.4]} 24. Na3 {[%clk 0:01:18.5]} 24... Nd4 {[%clk
0:01:05.7]} 25. Qe4 {[%clk 0:01:13]} 25... Nc6 {[%clk 0:00:52.4]} 26. Rad1
{[%clk 0:01:05.7]} 26... Qc7 {[%clk 0:00:50.2]} 27. Nc4 {[%clk 0:00:42]} 27...
Re8 {[%clk 0:00:37.1]} 28. Ne5 {[%clk 0:00:39.4]} 28... Nxe5 {[%clk 0:00:31.2]}
29. Qxe5 {[%clk 0:00:38.9]} 29... Qxe5 {[%clk 0:00:28.8]} 30. Bxe5 {[%clk
0:00:39.5]} 30... Bb3 {[%clk 0:00:22.2]} 31. Rd7 {[%clk 0:00:36.6]} 31... Bxa4
{[%clk 0:00:20.3]} 32. Rxb7 {[%clk 0:00:36.3]} 32... Rad8 {[%clk 0:00:19.2]} 33.
Bc3 {[%clk 0:00:33.6]} 33... Bb5 {[%clk 0:00:18.3]} 34. Re1 {[%clk 0:00:28.5]}
34... Bc5 {[%clk 0:00:17.5]} 35. e3 {[%clk 0:00:27.2]} 35... Rd6 {[%clk
0:00:12.2]} 36. Bf1 {[%clk 0:00:26.9]} 36... Bc6 {[%clk 0:00:10.3]} 37. Rc7
{[%clk 0:00:27.1]} 37... Red8 {[%clk 0:00:09.7]} 38. Bg2 {[%clk 0:00:26.6]}
38... Bxg2 {[%clk 0:00:09]} 39. Kxg2 {[%clk 0:00:26.8]} 39... Bb6 {[%clk
0:00:07.9]} 40. Rb7 {[%clk 0:00:26.9]} 40... h5 {[%clk 0:00:06.8]} 41. h4 {[%clk
0:00:26.1]} 41... g6 {[%clk 0:00:03]} 42. Be5 {[%clk 0:00:25.8]} 42... Rc6
{[%clk 0:00:03]} 43. Ra1 {[%clk 0:00:21.5]} 43... Re8 {[%clk 0:00:03.2]} 44.
Rxa6 {[%clk 0:00:20.3]} 44... Rxe5 {[%clk 0:00:02.4]} 45. Rbxb6 {[%clk
0:00:20.7]} 45... Rxb6 {[%clk 0:00:02.5]} 46. Rxb6 {[%clk 0:00:21.6]} 46... Rc5
{[%clk 0:00:02.8]} 47. b4 {[%clk 0:00:20.8]} 47... Rc3 {[%clk 0:00:02.1]} 48.
Rb7 {[%clk 0:00:21.7]} 48... Kg7 {[%clk 0:00:02.4]} 49. b5 {[%clk 0:00:21.9]}
49... Rb3 {[%clk 0:00:03.3]} 50. Kf3 {[%clk 0:00:21.4]} 50... Kf6 {[%clk
0:00:03.8]} 51. Rb6+ {[%clk 0:00:20.2]} 51... Ke7 {[%clk 0:00:03.9]} 52. Rb7+
{[%clk 0:00:20.9]} 52... Ke6 {[%clk 0:00:03.7]} 53. Kf4 {[%clk 0:00:21.2]} 53...
Rb4+ {[%clk 0:00:03.2]} 54. e4 {[%clk 0:00:21.7]} 54... f5 {[%clk 0:00:03.3]}
55. f3 {[%clk 0:00:22.2]} 55... fxe4 {[%clk 0:00:03]} 56. fxe4 {[%clk
0:00:23.1]} 56... Rb1 {[%clk 0:00:02.7]} 57. Rb6+ {[%clk 0:00:22.4]} 57... Kf7
{[%clk 0:00:03]} 58. Kg5 {[%clk 0:00:22.7]} 58... Rf1 {[%clk 0:00:01.8]} 59.
Rb7+ {[%clk 0:00:21.7]} 59... Ke6 {[%clk 0:00:01.5]} 60. Kxg6 {[%clk 0:00:21.6]}
60... Rf3 {[%clk 0:00:02]} 61. Kxh5 {[%clk 0:00:21.5]} 61... Rxg3 {[%clk
0:00:02.3]} 62. b6 {[%clk 0:00:22]} 62... Ke5 {[%clk 0:00:02.4]} 63. Rb8 {[%clk
0:00:22.2]} 1-0

[Event "*** Titled Tuesday Blitz"]
[Site "Chess.com"]
[Date "2020.12.01"]
[Round "3"]
[White "JoachimMouhamad"]
[Black "chessmachine14"]
[Result "0-1"]
[WhiteElo "2397"]
[BlackElo "2244"]
[TimeControl "180+1"]
[EndTime "10:29:14 PST"]
[Termination "chessmachine14 won by checkmate"]

1. e4 {[%clk 0:03:00.9]} 1... c5 {[%clk 0:02:57.4]} 2. Nf3 {[%clk 0:03:00]} 2...
e6 {[%clk 0:02:57.3]} 3. d4 {[%clk 0:02:59.6]} 3... cxd4 {[%clk 0:02:57.4]} 4.
Nxd4 {[%clk 0:03:00.2]} 4... Nf6 {[%clk 0:02:57.6]} 5. Nc3 {[%clk 0:02:59.4]}
5... d6 {[%clk 0:02:57.1]} 6. g4 {[%clk 0:02:58.2]} 6... h6 {[%clk 0:02:56.6]}
7. h4 {[%clk 0:02:56.4]} 7... Nc6 {[%clk 0:02:56.6]} 8. Rg1 {[%clk 0:02:51.2]}
8... h5 {[%clk 0:02:56.6]} 9. g5 {[%clk 0:02:48.3]} 9... Ng4 {[%clk 0:02:56.2]}
10. f3 {[%clk 0:02:40]} 10... Qb6 {[%clk 0:02:51.2]} 11. Ncb5 {[%clk 0:02:21.5]}
11... a6 {[%clk 0:02:37]} 12. fxg4 {[%clk 0:02:18.3]} 12... axb5 {[%clk
0:02:32]} 13. Be3 {[%clk 0:02:18.2]} 13... e5 {[%clk 0:02:20]} 14. Nf5 {[%clk
0:02:15.2]} 14... Qa5+ {[%clk 0:02:16.9]} 15. Bd2 {[%clk 0:02:15.1]} 15... Qa4
{[%clk 0:02:09.2]} 16. Bd3 {[%clk 0:02:10.2]} 16... hxg4 {[%clk 0:01:56.8]} 17.
Qe2 {[%clk 0:02:00.8]} 17... Bxf5 {[%clk 0:01:41.4]} 18. exf5 {[%clk 0:01:57.1]}
18... Nd4 {[%clk 0:01:41.6]} 19. Qxg4 {[%clk 0:01:46.6]} 19... Rxh4 {[%clk
0:01:39.8]} 20. Qg2 {[%clk 0:01:31.3]} 20... Nxc2+ {[%clk 0:01:34.1]} 21. Bxc2
{[%clk 0:01:28]} 21... Qxc2 {[%clk 0:01:34.1]} 22. Be3 {[%clk 0:01:03.8]} 22...
Qxg2 {[%clk 0:01:10]} 23. Rxg2 {[%clk 0:01:04]} 23... Re4 {[%clk 0:00:58.9]} 24.
Kd2 {[%clk 0:00:55.6]} 24... Rc8 {[%clk 0:00:57.9]} 25. Rgg1 {[%clk 0:00:43.8]}
25... d5 {[%clk 0:00:57.1]} 26. Rac1 {[%clk 0:00:38.8]} 26... Bb4+ {[%clk
0:00:43.8]} 27. Kd3 {[%clk 0:00:38.7]} 27... Rcc4 {[%clk 0:00:32.2]} 28. b3
{[%clk 0:00:37.9]} 28... Rxc1 {[%clk 0:00:24.8]} 29. Rxc1 {[%clk 0:00:36.5]}
29... Kd7 {[%clk 0:00:24.9]} 30. Rh1 {[%clk 0:00:31.3]} 30... Rg4 {[%clk
0:00:20.7]} 31. Rh7 {[%clk 0:00:30.8]} 31... d4 {[%clk 0:00:20.9]} 32. Bc1
{[%clk 0:00:29.5]} 32... Bc3 {[%clk 0:00:20.9]} 33. f6 {[%clk 0:00:16]} 33...
e4+ {[%clk 0:00:20.6]} 34. Ke2 {[%clk 0:00:14.5]} 34... gxf6 {[%clk 0:00:19.4]}
35. Rxf7+ {[%clk 0:00:13.8]} 35... Ke8 {[%clk 0:00:19.9]} 36. Rxb7 {[%clk
0:00:11.9]} 36... fxg5 {[%clk 0:00:19.6]} 37. Rxb5 {[%clk 0:00:08.5]} 37... Rg2+
{[%clk 0:00:19.7]} 38. Kf1 {[%clk 0:00:08.3]} 38... Rxa2 {[%clk 0:00:19.6]} 39.
Re5+ {[%clk 0:00:08.5]} 39... Kd7 {[%clk 0:00:18.8]} 40. Rxe4 {[%clk 0:00:09.4]}
40... Ra1 {[%clk 0:00:19.2]} 41. Ke2 {[%clk 0:00:06.8]} 41... Rxc1 {[%clk
0:00:19.3]} 42. Rg4 {[%clk 0:00:07.5]} 42... Rb1 {[%clk 0:00:15.6]} 43. Rxg5
{[%clk 0:00:05.8]} 43... Rxb3 {[%clk 0:00:15.9]} 44. Kd3 {[%clk 0:00:06]} 44...
Kd6 {[%clk 0:00:15.8]} 45. Kc4 {[%clk 0:00:05.7]} 45... Rb4+ {[%clk 0:00:15.9]}
46. Kd3 {[%clk 0:00:05.8]} 46... Rb1 {[%clk 0:00:16.1]} 47. Rg6+ {[%clk
0:00:06.1]} 47... Kc5 {[%clk 0:00:15.6]} 48. Rg5+ {[%clk 0:00:07]} 48... Kb4
{[%clk 0:00:15.8]} 49. Rg6 {[%clk 0:00:07.7]} 49... Rd1+ {[%clk 0:00:16]} 50.
Kc2 {[%clk 0:00:08.6]} 50... Rd2+ {[%clk 0:00:16.2]} 51. Kc1 {[%clk 0:00:09.5]}
51... Kc4 {[%clk 0:00:16.5]} 52. Rc6+ {[%clk 0:00:09.9]} 52... Kd3 {[%clk
0:00:16.4]} 53. Re6 {[%clk 0:00:08.5]} 53... Re2 {[%clk 0:00:16.1]} 54. Rxe2
{[%clk 0:00:02.2]} 54... Kxe2 {[%clk 0:00:16.4]} 55. Kc2 {[%clk 0:00:03.1]}
55... d3+ {[%clk 0:00:16.8]} 56. Kxc3 {[%clk 0:00:03.1]} 56... d2 {[%clk
0:00:17.7]} 57. Kb2 {[%clk 0:00:04]} 57... d1=Q {[%clk 0:00:17.8]} 58. Ka3
{[%clk 0:00:04.1]} 58... Kd2 {[%clk 0:00:18.1]} 59. Kb4 {[%clk 0:00:05]} 59...
Qc2 {[%clk 0:00:17.7]} 60. Ka5 {[%clk 0:00:05.9]} 60... Kc3 {[%clk 0:00:17.5]}
61. Kb6 {[%clk 0:00:06.8]} 61... Kd4 {[%clk 0:00:17.8]} 62. Ka7 {[%clk
0:00:07.7]} 62... Kc5 {[%clk 0:00:17.9]} 63. Ka8 {[%clk 0:00:08.6]} 63... Kc6
{[%clk 0:00:18]} 64. Kb8 {[%clk 0:00:09.5]} 64... Qb3+ {[%clk 0:00:17.5]} 65.
Kc8 {[%clk 0:00:10.4]} 65... Qg8# {[%clk 0:00:17.5]} 0-1

[Event "*** Titled Tuesday Blitz"]
[Site "Chess.com"]
[Date "2020.12.01"]
[Round "3"]
[White "jens1102"]
[Black "ondoko"]
[Result "0-1"]
[WhiteElo "2302"]
[BlackElo "2113"]
[TimeControl "180+1"]
[EndTime "10:29:22 PST"]
[Termination "ondoko won by checkmate"]

1. c4 {[%clk 0:03:00.9]} 1... c6 {[%clk 0:02:57.2]} 2. e4 {[%clk 0:02:59.3]}
2... d5 {[%clk 0:02:57.9]} 3. exd5 {[%clk 0:02:58.7]} 3... cxd5 {[%clk
0:02:58.6]} 4. d4 {[%clk 0:02:59.6]} 4... Nf6 {[%clk 0:02:57.7]} 5. Nc3 {[%clk
0:03:00]} 5... Nc6 {[%clk 0:02:57.3]} 6. Nf3 {[%clk 0:02:59.5]} 6... Bg4 {[%clk
0:02:35.4]} 7. cxd5 {[%clk 0:02:49]} 7... Nxd5 {[%clk 0:02:36.3]} 8. Bc4 {[%clk
0:02:48.9]} 8... Nxc3 {[%clk 0:02:12.2]} 9. bxc3 {[%clk 0:02:49.8]} 9... e6
{[%clk 0:02:10.6]} 10. O-O {[%clk 0:02:34.8]} 10... Be7 {[%clk 0:02:08.4]} 11.
Re1 {[%clk 0:02:34.1]} 11... O-O {[%clk 0:02:07.6]} 12. h3 {[%clk 0:02:33.9]}
12... Bh5 {[%clk 0:02:07.3]} 13. Bf4 {[%clk 0:02:33.6]} 13... Rc8 {[%clk
0:02:06.4]} 14. Bd3 {[%clk 0:02:33.2]} 14... Na5 {[%clk 0:02:01.1]} 15. Qc2
{[%clk 0:02:20.6]} 15... Bg6 {[%clk 0:02:00]} 16. Ne5 {[%clk 0:02:13.1]} 16...
Bxd3 {[%clk 0:01:37]} 17. Qxd3 {[%clk 0:02:10.7]} 17... Qd5 {[%clk 0:01:37.5]}
18. Re3 {[%clk 0:02:03.8]} 18... Nc4 {[%clk 0:01:26.8]} 19. Rg3 {[%clk
0:01:57.8]} 19... Nxe5 {[%clk 0:01:20]} 20. Bxe5 {[%clk 0:01:56.8]} 20... f6
{[%clk 0:01:15.2]} 21. Bf4 {[%clk 0:01:51]} 21... e5 {[%clk 0:01:15.1]} 22. Bh6
{[%clk 0:01:46.8]} 22... Rf7 {[%clk 0:01:11.8]} 23. Qf5 {[%clk 0:01:47]} 23...
Rd8 {[%clk 0:01:03]} 24. Rd1 {[%clk 0:01:17.3]} 24... exd4 {[%clk 0:01:00.5]}
25. Qg4 {[%clk 0:01:12.7]} 25... f5 {[%clk 0:00:55.2]} 26. Qh5 {[%clk
0:01:00.7]} 26... d3 {[%clk 0:00:45.9]} 27. Rd2 {[%clk 0:00:15.1]} 27... f4
{[%clk 0:00:45.4]} 28. Qxd5 {[%clk 0:00:13.8]} 28... Rxd5 {[%clk 0:00:45.6]} 29.
Rg4 {[%clk 0:00:12.7]} 29... Bd6 {[%clk 0:00:38.8]} 30. c4 {[%clk 0:00:06.3]}
30... Rd4 {[%clk 0:00:35.4]} 31. Bg5 {[%clk 0:00:04.7]} 31... Bb4 {[%clk
0:00:25.8]} 32. Rd1 {[%clk 0:00:04.4]} 32... d2 {[%clk 0:00:19.1]} 33. g3 {[%clk
0:00:03.5]} 33... h6 {[%clk 0:00:04.4]} 34. Bxf4 {[%clk 0:00:02]} 34... g5
{[%clk 0:00:04.7]} 35. Be3 {[%clk 0:00:02.1]} 35... Rd3 {[%clk 0:00:02.6]} 36.
Rd4 {[%clk 0:00:02]} 36... Rxd4 {[%clk 0:00:02.1]} 37. Bxd4 {[%clk 0:00:02.9]}
37... Rc7 {[%clk 0:00:02]} 38. Be3 {[%clk 0:00:03.3]} 38... Rxc4 {[%clk
0:00:02.2]} 39. Kg2 {[%clk 0:00:02.4]} 39... Rc2 {[%clk 0:00:02.2]} 40. a3
{[%clk 0:00:02.1]} 40... Bc3 {[%clk 0:00:01.8]} 41. a4 {[%clk 0:00:02]} 41...
Ra2 {[%clk 0:00:02]} 42. Kf3 {[%clk 0:00:02.7]} 42... Rxa4 {[%clk 0:00:02.5]}
43. Bxd2 {[%clk 0:00:03.3]} 43... Rd4 {[%clk 0:00:02.4]} 44. Ke2 {[%clk
0:00:03.5]} 44... Rxd2+ {[%clk 0:00:02]} 45. Rxd2 {[%clk 0:00:04.4]} 45... Bxd2
{[%clk 0:00:02.7]} 46. Kxd2 {[%clk 0:00:05.3]} 46... Kf7 {[%clk 0:00:03]} 47.
Kd3 {[%clk 0:00:06.2]} 47... Ke6 {[%clk 0:00:03.6]} 48. Kc4 {[%clk 0:00:07.1]}
48... b6 {[%clk 0:00:03.7]} 49. Kb5 {[%clk 0:00:08]} 49... Ke5 {[%clk
0:00:04.1]} 50. h4 {[%clk 0:00:07.8]} 50... gxh4 {[%clk 0:00:03.7]} 51. gxh4
{[%clk 0:00:08.7]} 51... Kf4 {[%clk 0:00:04.1]} 52. Ka6 {[%clk 0:00:09.6]} 52...
Kf3 {[%clk 0:00:04.1]} 53. Kxa7 {[%clk 0:00:10.5]} 53... b5 {[%clk 0:00:04.6]}
54. Kb6 {[%clk 0:00:11.4]} 54... b4 {[%clk 0:00:05.1]} 55. Kc5 {[%clk
0:00:12.3]} 55... b3 {[%clk 0:00:05.7]} 56. Kd5 {[%clk 0:00:13.1]} 56... b2
{[%clk 0:00:06.1]} 57. Ke5 {[%clk 0:00:14]} 57... b1=Q {[%clk 0:00:06.6]} 58.
Kf6 {[%clk 0:00:14.9]} 58... Qh7 {[%clk 0:00:06.6]} 59. h5 {[%clk 0:00:14.7]}
59... Kxf2 {[%clk 0:00:07.5]} 60. Ke5 {[%clk 0:00:14.8]} 60... Kg3 {[%clk
0:00:08]} 61. Kf6 {[%clk 0:00:15.7]} 61... Kh4 {[%clk 0:00:08.6]} 62. Ke5 {[%clk
0:00:16.6]} 62... Kxh5 {[%clk 0:00:09.1]} 63. Kf6 {[%clk 0:00:17.5]} 63... Kg4
{[%clk 0:00:09]} 64. Ke5 {[%clk 0:00:18.4]} 64... h5 {[%clk 0:00:09.9]} 65. Kf6
{[%clk 0:00:19.3]} 65... h4 {[%clk 0:00:10.7]} 66. Ke5 {[%clk 0:00:20.2]} 66...
h3 {[%clk 0:00:11.6]} 67. Kf6 {[%clk 0:00:21.1]} 67... h2 {[%clk 0:00:12.4]} 68.
Ke6 {[%clk 0:00:22]} 68... h1=Q {[%clk 0:00:13.2]} 69. Ke5 {[%clk 0:00:22.9]}
69... Qe1+ {[%clk 0:00:13.1]} 70. Kf6 {[%clk 0:00:23.8]} 70... Qf5+ {[%clk
0:00:12.2]} 71. Kg7 {[%clk 0:00:22.5]} 71... Qe7+ {[%clk 0:00:11.6]} 72. Kh8
{[%clk 0:00:23.3]} 72... Qff8# {[%clk 0:00:11.5]} 0-1

[Event "*** Titled Tuesday Blitz"]
[Site "Chess.com"]
[Date "2020.12.01"]
[Round "3"]
[White "Chuchofrio1"]
[Black "Keures"]
[Result "0-1"]
[WhiteElo "2479"]
[BlackElo "2243"]
[TimeControl "180+1"]
[EndTime "10:29:23 PST"]
[Termination "Keures won by checkmate"]

1. e4 {[%clk 0:02:59.6]} 1... e6 {[%clk 0:03:00.2]} 2. d4 {[%clk 0:02:58.5]}
2... d5 {[%clk 0:03:00.3]} 3. Nc3 {[%clk 0:02:59]} 3... Nf6 {[%clk 0:02:57.3]}
4. Bg5 {[%clk 0:02:59]} 4... Be7 {[%clk 0:02:56.8]} 5. e5 {[%clk 0:02:58.9]}
5... Ne4 {[%clk 0:02:56.6]} 6. Bxe7 {[%clk 0:02:59.8]} 6... Nxc3 {[%clk
0:02:56.1]} 7. Bxd8 {[%clk 0:02:32.5]} 7... Nxd1 {[%clk 0:02:53.5]} 8. Bxc7
{[%clk 0:02:32.1]} 8... Nxb2 {[%clk 0:02:53.5]} 9. Rb1 {[%clk 0:02:20.1]} 9...
Nc4 {[%clk 0:02:53]} 10. Bxc4 {[%clk 0:02:19.5]} 10... dxc4 {[%clk 0:02:53.9]}
11. Bd6 {[%clk 0:02:17.9]} 11... b6 {[%clk 0:02:40.7]} 12. Kd2 {[%clk
0:02:16.2]} 12... Bb7 {[%clk 0:02:29.7]} 13. f3 {[%clk 0:02:16.3]} 13... Nc6
{[%clk 0:02:26.2]} 14. Kc3 {[%clk 0:02:15.8]} 14... Rc8 {[%clk 0:02:17.7]} 15.
Ne2 {[%clk 0:02:13.1]} 15... Ne7 {[%clk 0:02:10]} 16. Nf4 {[%clk 0:02:02.7]}
16... Nd5+ {[%clk 0:02:04.7]} 17. Nxd5 {[%clk 0:02:02.1]} 17... Bxd5 {[%clk
0:02:04.8]} 18. a4 {[%clk 0:02:01.1]} 18... Bc6 {[%clk 0:01:54.7]} 19. Rb4
{[%clk 0:01:53.9]} 19... Kd7 {[%clk 0:01:36.9]} 20. Rhb1 {[%clk 0:01:44.8]}
20... h5 {[%clk 0:01:32]} 21. Rxc4 {[%clk 0:01:39.3]} 21... Bxa4 {[%clk
0:01:28.3]} 22. Rb4 {[%clk 0:01:30.8]} 22... Bc6 {[%clk 0:01:21.2]} 23. Kd2
{[%clk 0:01:19.5]} 23... Bd5 {[%clk 0:01:18.7]} 24. Rxc8 {[%clk 0:01:15.5]}
24... Rxc8 {[%clk 0:01:19.6]} 25. Kd3 {[%clk 0:01:10.1]} 25... b5 {[%clk
0:00:57.3]} 26. Bc5 {[%clk 0:01:03.3]} 26... Bc4+ {[%clk 0:00:55.2]} 27. Kd2
{[%clk 0:00:50.3]} 27... a5 {[%clk 0:00:49.7]} 28. Rb1 {[%clk 0:00:49.6]} 28...
Kc6 {[%clk 0:00:49.2]} 29. c3 {[%clk 0:00:48.4]} 29... Rb8 {[%clk 0:00:44.1]}
30. h4 {[%clk 0:00:46.5]} 30... Kd5 {[%clk 0:00:38.4]} 31. Ra1 {[%clk
0:00:44.3]} 31... Ra8 {[%clk 0:00:37.5]} 32. Bb4 {[%clk 0:00:37.6]} 32... a4
{[%clk 0:00:33.6]} 33. Ba3 {[%clk 0:00:37.6]} 33... g6 {[%clk 0:00:31.6]} 34.
Rg1 {[%clk 0:00:29.1]} 34... Rh8 {[%clk 0:00:29.7]} 35. Rh1 {[%clk 0:00:26.4]}
35... Rg8 {[%clk 0:00:29.3]} 36. g4 {[%clk 0:00:25.8]} 36... Rh8 {[%clk
0:00:28.7]} 37. gxh5 {[%clk 0:00:19.5]} 37... Rxh5 {[%clk 0:00:27.7]} 38. Ke3
{[%clk 0:00:18.9]} 38... Bb3 {[%clk 0:00:27.9]} 39. Kd3 {[%clk 0:00:19]} 39...
Bc4+ {[%clk 0:00:27.1]} 40. Kd2 {[%clk 0:00:18.8]} 40... Kc6 {[%clk 0:00:25.4]}
41. Be7 {[%clk 0:00:18.4]} 41... Bd5 {[%clk 0:00:24.1]} 42. Rh3 {[%clk
0:00:17.7]} 42... Rf5 {[%clk 0:00:21.4]} 43. Ke3 {[%clk 0:00:17]} 43... Bc4
{[%clk 0:00:19.4]} 44. Bb4 {[%clk 0:00:13.7]} 44... Kd5 {[%clk 0:00:18]} 45. Ba3
{[%clk 0:00:09.9]} 45... Bf1 {[%clk 0:00:17.8]} 46. Rh1 {[%clk 0:00:08.3]} 46...
Bc4 {[%clk 0:00:17.9]} 47. Rd1 {[%clk 0:00:07]} 47... Bb3 {[%clk 0:00:17.9]} 48.
Rc1 {[%clk 0:00:07]} 48... Kc4 {[%clk 0:00:18.1]} 49. Bb4 {[%clk 0:00:07.5]}
49... Ba2 {[%clk 0:00:17.8]} 50. Ra1 {[%clk 0:00:06.3]} 50... Kb3 {[%clk
0:00:18]} 51. Rc1 {[%clk 0:00:06.6]} 51... Kb2 {[%clk 0:00:17]} 52. Rg1 {[%clk
0:00:06.8]} 52... Bd5 {[%clk 0:00:17.1]} 53. Rg2+ {[%clk 0:00:06.9]} 53... Kb3
{[%clk 0:00:17.6]} 54. Rf2 {[%clk 0:00:06.1]} 54... Rh5 {[%clk 0:00:17.8]} 55.
Be7 {[%clk 0:00:04.8]} 55... a3 {[%clk 0:00:17.6]} 56. Rf1 {[%clk 0:00:03.4]}
56... Rf5 {[%clk 0:00:16.5]} 57. Rb1+ {[%clk 0:00:02.5]} 57... Kc2 {[%clk
0:00:16.9]} 58. Rxb5 {[%clk 0:00:02.3]} 58... a2 {[%clk 0:00:16.2]} 59. Ke2
{[%clk 0:00:03.2]} 59... a1=Q {[%clk 0:00:15.7]} 60. Ba3 {[%clk 0:00:03.4]}
60... Qd1+ {[%clk 0:00:15.3]} 61. Ke3 {[%clk 0:00:03.2]} 61... Qd3+ {[%clk
0:00:15.4]} 62. Kf2 {[%clk 0:00:03.4]} 62... Qxf3+ {[%clk 0:00:15.5]} 63. Ke1
{[%clk 0:00:01.9]} 63... Qf1# {[%clk 0:00:14.6]} 0-1